bitfinex-derivatives/quotes_SOLF0:USTF0_20251229
["timestamp","ask_amount","ask_price","bid_price","bid_amount"]
[1766971198346,16.96,126.96,126.9,1.28946417]
[1766971198553,0.06043169,126.94,126.92,0.05719111]
[1766971201357,0.00043169,126.94,126.92,1.34665528]
[1766971202357,0.00043169,126.94,126.92,0.05719111]
[1766971203758,3.31585878,126.99,126.93,19.16946417]
[1766971203962,3.31585878,126.99,126.95,1.28946417]
[1766971204162,3.31585878,126.99,126.94,1.28946417]
[1766971204354,3.31585878,126.99,126.94,19.16946417]
[1766971204552,20.27585878,126.99,126.92,32.30696015]
[1766971204865,0.05605743,126.97,126.94,0.05717245]
[1766971205849,1.28946417,126.95,126.89,17.88]
[1766971206755,0.05466639,126.93,126.91,0.05060897]
[1766971207858,0.00466639,126.93,126.91,0.05060897]
[1766971208262,0.00466639,126.93,126.91,19.22007314]
[1766971208471,3.31585878,126.99,126.92,19.16946417]
[1766971209359,0.05370136,126.97,126.94,0.05041588]
[1766971210064,1.34316553,126.97,126.94,0.00041588]
[1766971210362,0.05370136,126.97,126.94,0.00041588]
[1766971212759,17.01370136,126.97,126.94,0.00041588]
[1766971214569,17.01370136,126.97,126.86,7.33056015]
[1766971214570,16.96,126.95,126.86,7.33056015]
[1766971214772,5.60622809,126.93,126.85,17.88]
[1766971214973,16.96,126.92,126.85,17.88]
[1766971215669,0.0578864,126.9,126.87,0.05776365]
[1766971215862,17.4178864,126.9,126.83,7.33056015]
[1766971216060,24.4592,126.88,126.8,7.33056015]
[1766971216362,5.60622809,126.89,126.78,7.33056015]
[1766971216363,17.36,126.86,126.78,7.33056015]
[1766971216872,0.05200926,126.83,126.81,0.05118189]
[1766971217275,0.05200926,126.83,126.81,0.00118189]
[1766971221867,0.00200926,126.83,126.81,0.00118189]
[1766971225179,17.36,126.9,126.82,18.7]
[1766971226479,0.05505156,126.87,126.85,0.05231024]
[1766971230083,0.05505156,126.87,126.85,0.00231024]
[1766971230286,0.05505156,126.87,126.8,25.8031]
[1766971230485,17.41505156,126.87,126.8,25.8031]
[1766971230680,17.41505156,126.87,126.78,25.8042]
[1766971230885,17.36,126.87,126.78,25.8042]
[1766971231288,0.05320686,126.84,126.81,0.05835264]
[1766971234482,0.00320686,126.84,126.81,0.05835264]
[1766971234693,0.00320686,126.84,126.81,18.75835264]
[1766971235092,0.00320686,126.84,126.81,25.86095264]
[1766971236086,0.00320686,126.84,126.82,25.8021]
[1766971236585,17.36,126.9,126.84,25.801]
[1766971236788,17.36,126.92,126.84,25.801]
[1766971237701,0.05747676,126.89,126.87,0.06067242]
[1766971240588,24.4554,126.95,126.87,0.06067242]
[1766971240787,24.4554,126.95,126.87,18.7]
[1766971241484,0.05059186,126.92,126.9,0.05925367]
[1766971247988,0.05059186,126.92,126.87,18.7]
[1766971248391,0.05059186,126.92,126.85,7.1002]
[1766971248392,18.56059186,126.92,126.85,25.5402]
[1766971248996,25.65759186,126.92,126.87,0.06010135]
[1766971250297,18.51,126.91,126.87,0.00010135]
[1766971252302,25.6074,126.91,126.87,0.00010135]
[1766971255804,19.33507441,126.9,126.87,0.00010135]
[1766971257598,0.05059186,126.92,126.87,19.11517576]
[1766971257793,0.05059186,126.92,126.87,17.10010135]
[1766971258406,17.37059186,126.92,126.87,0.00010135]
[1766971258799,19.38566627,126.92,126.87,0.00010135]
[1766971260104,19.38566627,126.92,126.8,2.01507441]
[1766971260105,17.32,126.86,126.79,24.2038]
[1766971260405,7.0996,126.87,126.77,9.72401058]
[1766971260406,17.32,126.89,126.8,19.11507441]
[1766971260609,17.32,126.87,126.79,9.11867441]
[1766971260807,17.32,126.86,126.77,17.1]
[1766971261208,0.05914587,126.83,126.8,0.05624405]
[1766971262298,17.32,126.86,126.8,0.05624405]
[1766971263411,0.04981107,126.84,126.8,0.05624405]
[1766971263909,0.04981107,126.84,126.8,17.15624405]
[1766971264303,17.32,126.88,126.81,17.1]
[1766971265008,17.32,126.87,126.78,29.82009387]
[1766971265207,17.32,126.87,126.78,24.2042]
[1766971265413,0.06005127,126.84,126.81,0.05176058]
[1766971268310,17.38005127,126.84,126.77,7.1047]
[1766971269421,17.38005127,126.84,126.79,0.05877722]
[1766971271014,24.48145127,126.84,126.79,0.05877722]
[1766971272918,17.32,126.83,126.79,0.05877722]
[1766971274422,17.32,126.83,126.73,9.72401058]
[1766971274423,20.77851249,126.82,126.73,24.2071]
[1766971274724,3.45851249,126.8,126.7,19.64927677]
[1766971274916,17.32,126.79,126.7,19.64927677]
[1766971275416,0.05144306,126.76,126.73,0.05734198]
[1766971279319,18.88,126.82,126.73,18.49734198]
[1766971279516,18.88,126.82,126.73,18.44]
[1766971279717,18.88,126.82,126.74,3.45851249]
[1766971280415,0.05501294,126.79,126.77,0.0539021]
[1766971281318,96.63851249,126.84,126.77,0.0539021]
[1766971281319,7.1015,126.84,126.77,0.0539021]
[1766971281526,18.88,126.85,126.77,0.0539021]
[1766971281723,18.88,126.85,126.76,21.89851249]
[1766971282320,0.05713465,126.82,126.79,0.05184756]
[1766971283921,18.88,126.85,126.79,0.05184756]
[1766971284125,7.0998,126.87,126.79,18.49184756]
[1766971284324,18.88,126.88,126.79,18.44]
[1766971285121,0.05220858,126.85,126.82,0.05087079]
[1766971285525,0.00220858,126.85,126.82,18.49087079]
[1766971289133,0.00220858,126.85,126.82,25.59277079]
[1766971291328,0.00220858,126.85,126.83,18.44]
[1766971291925,0.00220858,126.85,126.83,25.5413]
[1766971292126,18.88,126.94,126.84,21.89851249]
[1766971292737,18.88,126.92,126.84,18.44]
[1766971293037,0.05696357,126.89,126.87,0.05990239]
[1766971295933,0.05696357,126.89,126.81,25.5425]
[1766971296129,18.88,126.9,126.82,18.44]
[1766971296635,18.88,126.89,126.82,18.44]
[1766971297037,0.05819828,126.87,126.84,0.04979779]
[1766971298334,18.93819828,126.87,126.79,25.5437]
[1766971298530,18.88,126.87,126.79,25.5437]
[1766971299136,22.33851249,126.87,126.79,25.5437]
[1766971299438,0.05100774,126.84,126.82,0.05577295]
[1766971302127,0.05100774,126.84,126.79,18.44]
[1766971302326,18.93100774,126.84,126.77,25.5447]
[1766971302532,18.93100774,126.84,126.77,18.44]
[1766971303043,29.44051249,126.83,126.74,18.44]
[1766971303342,0.05536413,126.8,126.77,0.05838165]
[1766971320049,0.05536413,126.8,126.77,26.44505856]
[1766971320253,19.02167691,126.84,126.77,26.44505856]
[1766971320954,17.73,126.84,126.77,26.44505856]
[1766971321342,0.05274205,126.82,126.77,26.44505856]
[1766971322245,0.05274205,126.82,126.77,0.05838165]
[1766971327555,17.78274205,126.82,126.77,0.05838165]
[1766971327755,19.02167691,126.81,126.77,0.05838165]
[1766971329255,19.02167691,126.81,126.74,17.99]
[1766971329458,19.02167691,126.79,126.72,33.72369298]
[1766971329757,19.02167691,126.79,126.72,17.99]
[1766971330150,19.08119444,126.77,126.74,0.05765139]
[1766971330350,19.08119444,126.77,126.7,11.17469765]
[1766971330351,19.08119444,126.77,126.7,1.29167691]
[1766971330748,19.08119444,126.77,126.71,17.99]
[1766971330749,24.89471753,126.77,126.71,17.99]
[1766971330949,0.05951753,126.77,126.71,19.28167691]
[1766971331351,0.05951753,126.77,126.73,0.05153617]
[1766971331651,19.08119444,126.77,126.73,0.05153617]
[1766971332460,17.78951753,126.77,126.73,0.05153617]
[1766971336259,0.05951753,126.77,126.73,0.05153617]
[1766971339765,17.94951753,126.77,126.73,0.05153617]
[1766971343671,17.94951753,126.77,126.68,31.71735421]
[1766971343870,17.89,126.77,126.68,31.71735421]
[1766971344170,93.2,126.83,126.68,24.60765421]
[1766971344171,17.89,126.75,126.68,24.60765421]
[1766971344369,17.89,126.75,126.68,17.27]
[1766971344675,17.89,126.75,126.7,0.05414862]
[1766971344676,0.05343535,126.73,126.7,0.05414862]
[1766971345868,9.04853639,126.72,126.66,7.1109]
[1766971346071,16.37,126.77,126.7,17.27]
[1766971346969,0.05375252,126.75,126.72,0.0547162]
[1766971347361,0.05375252,126.75,126.72,0.0047162]
[1766971347362,16.41375252,126.75,126.72,0.0047162]
[1766971353863,16.2,126.74,126.66,24.60765421]
[1766971354265,16.2,126.74,126.67,17.27]
[1766971354870,0.06022348,126.72,126.69,0.04516259]
[1766971358175,16.20022348,126.72,126.65,17.27]
[1766971359487,18.09981784,126.68,126.6,17.27]
[1766971359783,0.05294715,126.65,126.58,17.27]
[1766971361369,16.1,126.7,126.62,19.28981784]
[1766971362384,0.05158128,126.67,126.65,0.05294715]
[1766971368574,7.1083,126.72,126.65,17.45294715]
[1766971368777,23.1983,126.72,126.65,17.45294715]
[1766971369690,0.05491631,126.7,126.65,17.45294715]
[1766971379888,0.05491631,126.7,126.65,19.47276499]
[1766971380094,0.00491631,126.7,126.65,19.47276499]
[1766971380287,0.00491631,126.7,126.65,17.45294715]
[1766971383383,17.92981784,126.69,126.61,15.84]
[1766971383584,2.01981784,126.65,126.57,15.84]
[1766971383796,17.92981784,126.65,126.57,15.84]
[1766971384497,17.92981784,126.65,126.6,0.05741571]
[1766971384899,17.90981784,126.67,126.6,0.05741571]
[1766971385094,17.90981784,126.67,126.58,17.85981784]
[1766971385396,25.02071784,126.67,126.58,17.85981784]
[1766971385601,25.02071784,126.67,126.61,0.05443972]
[1766971385602,0.05711924,126.64,126.61,0.05443972]
[1766971390796,15.89,126.67,126.61,15.89443972]
[1766971391399,15.89,126.67,126.61,0.05443972]
[1766971391604,17.85981784,126.64,126.61,0.05443972]
[1766971392006,17.91583195,126.64,126.61,0.05443972]
[1766971393004,0.05601411,126.64,126.61,0.05443972]
[1766971393400,22.9305,126.68,126.61,15.89443972]
[1766971393706,24.95031784,126.68,126.61,15.89443972]
[1766971393894,17.83981784,126.68,126.61,15.89443972]
[1766971394497,0.05268197,126.66,126.61,15.89443972]
[1766971398898,0.05268197,126.66,126.61,17.1888971]
[1766971399302,0.05268197,126.66,126.61,15.89443972]
[1766971400107,0.00268197,126.66,126.61,17.1888971]
[1766971402111,0.00268197,126.66,126.62,15.91]
[1766971404815,1.29445738,126.7,126.63,17.20445738]
[1766971405108,1.29445738,126.7,126.58,9.72401058]
[1766971405109,24.24285738,126.72,126.65,15.91]
[1766971405513,1.29445738,126.71,126.65,15.91]
[1766971405914,0.05192025,126.69,126.67,0.05670355]
[1766971424227,15.75,126.74,126.68,17.20445738]
[1766971425128,0.05772484,126.72,126.7,0.0603794]
[1766971431323,0.05772484,126.72,126.68,15.91]
[1766971432336,0.05772484,126.72,126.69,0.05025145]
[1766971437736,0.05772484,126.72,126.69,16.30025145]
[1766971438230,0.05772484,126.72,126.69,0.05025145]
[1766971456059,15.61772484,126.72,126.69,0.05025145]
[1766971456264,15.61772484,126.72,126.65,15.52]
[1766971457164,15.61772484,126.72,126.67,0.05274528]
[1766971457566,15.51,126.71,126.67,0.05274528]
[1766971480684,15.51,126.71,126.67,0.00274528]
[1766971480889,17.53012396,126.71,126.67,0.00274528]
[1766971481491,15.51,126.71,126.67,0.00274528]
[1766971481787,15.36,126.68,126.67,0.00274528]
[1766971490598,0.49725472,126.67,126.62,17.0]
[1766971490797,15.33,126.67,126.62,17.0]
[1766971491595,0.05283446,126.66,126.63,0.05074717]
[1766971497000,0.05283446,126.66,126.63,0.00074717]
[1766971497001,15.33283446,126.66,126.63,0.00074717]
[1766971497302,0.05283446,126.66,126.63,0.00074717]
[1766971509827,15.24283446,126.66,126.63,0.00074717]
[1766971510019,15.19,126.63,126.57,16.72]
[1766971511022,0.05149905,126.61,126.59,0.05416242]
[1766971515133,16.52674035,126.61,126.59,0.00416242]
[1766971515330,1.2952413,126.6,126.55,15.8]
[1766971515533,15.23149905,126.61,126.52,105.5377814]
[1766971515534,16.4552413,126.59,126.53,15.8]
[1766971515831,1.2952413,126.54,126.48,15.8]
[1766971516026,1.2952413,126.53,126.48,15.8]
[1766971516331,0.04973618,126.52,126.49,0.05763234]
[1766971516635,16.49497748,126.52,126.49,0.05763234]
[1766971517532,1.2952413,126.51,126.49,0.05763234]
[1766971518829,15.19973618,126.52,126.49,0.05763234]
[1766971521842,16.49497748,126.52,126.45,24.2181413]
[1766971522039,16.49497748,126.52,126.45,22.9229]
[1766971522239,16.49497748,126.52,126.45,24.2181413]
[1766971522435,0.04973618,126.52,126.47,1.2952413]
[1766971522639,16.3752413,126.54,126.48,15.8]
[1766971523042,0.05416203,126.52,126.5,0.04423563]
[1766971523249,15.09416203,126.52,126.5,0.00423563]
[1766971526445,16.38940333,126.52,126.5,0.00423563]
[1766971527036,16.3252413,126.51,126.46,15.8]
[1766971527240,15.03,126.51,126.44,24.2186413]
[1766971527440,15.03,126.51,126.45,15.8]
[1766971527949,15.03,126.51,126.45,17.0952413]
[1766971528149,0.05529285,126.49,126.45,15.8]
[1766971529445,0.05529285,126.49,126.43,17.0952413]
[1766971529646,16.38053415,126.49,126.43,15.8]
[1766971529945,15.08529285,126.49,126.43,15.8]
[1766971530745,15.08529285,126.49,126.43,17.0952413]
[1766971531751,0.05529285,126.49,126.44,17.0952413]
[1766971533044,15.07529285,126.49,126.44,15.8]
[1766971537454,15.07529285,126.49,126.45,1.2952413]
[1766971537650,15.07529285,126.49,126.44,17.0952413]
[1766971539956,0.05529285,126.49,126.44,17.0952413]
[1766971540159,0.05529285,126.49,126.46,1.2952413]
[1766971540350,0.05529285,126.49,126.45,17.0952413]
[1766971540657,0.05529285,126.49,126.45,15.8]
[1766971542757,0.05529285,126.49,126.45,17.0952413]
[1766971544158,0.05529285,126.49,126.45,15.8]
[1766971546765,1.35053415,126.49,126.43,16.83]
[1766971547070,0.04985731,126.47,126.43,16.83]
[1766971548267,15.0,126.5,126.44,18.1252413]
[1766971549061,15.0,126.5,126.44,16.83]
[1766971549268,0.0579009,126.48,126.46,0.04985731]
[1766971549961,15.0,126.5,126.46,0.04985731]
[1766971549962,1.2952413,126.51,126.46,0.04985731]
[1766971550265,22.1596,126.52,126.46,16.87985731]
[1766971550762,23.4548413,126.52,126.46,16.87985731]
[1766971551165,0.05373668,126.5,126.46,16.87985731]
[1766971554661,1.34897798,126.5,126.46,16.87985731]
[1766971554862,1.34897798,126.5,126.46,0.04985731]
[1766971556563,16.42897798,126.5,126.46,0.04985731]
[1766971559170,15.13373668,126.5,126.46,0.04985731]
[1766971564876,0.05373668,126.5,126.46,17.67509861]
[1766971565881,8.4137413,126.54,126.48,17.6252413]
[1766971565882,22.1885,126.54,126.48,17.6252413]
[1766971566078,15.12,126.56,126.5,17.6252413]
[1766971566971,0.05229873,126.54,126.52,0.05579009]
[1766971569679,0.05229873,126.54,126.48,24.7462413]
[1766971569871,16.4052413,126.55,126.48,24.7462413]
[1766971570184,16.4052413,126.55,126.49,16.33]
[1766971570670,0.05404056,126.53,126.51,0.05438243]
[1766971570869,16.3452413,126.57,126.51,0.05438243]
[1766971571180,16.3452413,126.57,126.5,17.6252413]
[1766971571882,0.05909336,126.55,126.52,0.05634883]
[1766971582392,0.05909336,126.55,126.52,16.16634883]
[1766971583480,0.05909336,126.55,126.52,0.05634883]
[1766971586593,15.07909336,126.55,126.52,0.05634883]
[1766971587090,17.1048072,126.55,126.48,23.231]
[1766971587298,17.1048072,126.55,126.49,16.11]
[1766971587890,15.07909336,126.55,126.49,16.11]
[1766971588194,15.07909336,126.55,126.51,0.05217049]
[1766971589891,0.05909336,126.55,126.51,16.16217049]
[1766971598902,24.15051384,126.6,126.51,23.53094886]
[1766971599097,24.15051384,126.6,126.52,16.11]
[1766971599599,15.01,126.58,126.52,16.11]
[1766971599799,15.01,126.58,126.54,0.05431278]
[1766971600000,0.05030199,126.56,126.54,0.05431278]
[1766971605614,14.99,126.6,126.54,22.71221278]
[1766971606506,0.05010489,126.58,126.54,22.71221278]
[1766971608819,14.98,126.64,126.57,15.54]
[1766971609717,15.03020625,126.62,126.59,0.053407]
[1766971609914,17.05592009,126.62,126.59,0.053407]
[1766971610119,0.05020625,126.62,126.59,0.053407]
[1766971610808,0.05020625,126.62,126.59,15.593407]
[1766971611112,14.98,126.65,126.59,15.593407]
[1766971611415,17.00571384,126.65,126.59,0.053407]
[1766971611612,17.05571384,126.64,126.59,0.053407]
[1766971612018,0.05838538,126.63,126.59,0.053407]
[1766971621321,17.10409922,126.63,126.59,0.053407]
[1766971622014,17.10409922,126.63,126.59,0.003407]
[1766971623524,15.07838538,126.63,126.59,0.003407]
[1766971625024,16.98571384,126.62,126.59,0.003407]
[1766971625226,16.98571384,126.62,126.56,16.39]
[1766971626125,0.0577804,126.6,126.58,0.05486634]
[1766971629833,14.9677804,126.6,126.58,0.00486634]
[1766971630930,0.0577804,126.6,126.58,0.00486634]
[1766971637234,14.9677804,126.6,126.58,0.00486634]
[1766971639226,16.20541982,126.59,126.53,16.6]
[1766971639434,1.29541982,126.58,126.53,16.6]
[1766971639937,16.20541982,126.59,126.53,16.6]
[1766971640139,0.05263878,126.57,126.55,0.05466097]
[1766971642831,0.05263878,126.57,126.55,0.00466097]
[1766971643536,0.00263878,126.57,126.55,0.00466097]
[1766971647639,14.86,126.6,126.55,0.00466097]
[1766971647843,16.15541982,126.6,126.55,0.00466097]
[1766971648651,0.05611878,126.59,126.55,0.00466097]
[1766971650646,14.96611878,126.59,126.55,0.00466097]
[1766971656052,0.05611878,126.59,126.55,16.60466097]
[1766971657047,14.93611878,126.59,126.55,0.00466097]
[1766971659155,14.93611878,126.59,126.55,1.30008079]
[1766971660852,14.86,126.61,126.55,17.90008079]
[1766971661155,14.85,126.63,126.57,17.89541982]
[1766971661359,14.85,126.65,126.59,17.89541982]
[1766971661661,1.37484197,126.68,126.61,17.89541982]
[1766971661662,14.85,126.68,126.61,17.89541982]
[1766971661959,0.05140968,126.66,126.63,0.05325782]
[1766971662359,0.05140968,126.66,126.63,1.34867764]
[1766971662562,0.05140968,126.66,126.63,17.94867764]
[1766971663350,0.05140968,126.66,126.63,16.65325782]
[1766971663654,0.05140968,126.66,126.63,0.05325782]
[1766971671466,0.05140968,126.66,126.63,0.00325782]
[1766971671467,14.82140968,126.66,126.63,0.00325782]
[1766971671660,16.01541982,126.64,126.58,15.96]
[1766971671859,1.29541982,126.63,126.58,15.96]
[1766971672562,14.72,126.64,126.58,15.96]
[1766971672563,0.05540225,126.62,126.59,0.06005668]
[1766971678467,14.75540225,126.62,126.59,0.06005668]
[1766971682267,16.05082207,126.62,126.55,16.18]
[1766971682463,14.62,126.6,126.55,16.18]
[1766971683274,15.91541982,126.6,126.55,16.18]
[1766971683477,0.05878808,126.59,126.56,0.05452753]
[1766971693478,0.05878808,126.59,126.56,16.23452753]
[1766971697977,0.05878808,126.59,126.56,0.05452753]
[1766971720518,1.37514077,126.65,126.56,23.8733059]
[1766971720519,14.49,126.62,126.56,23.8733059]
[1766971720717,14.49,126.62,126.56,23.81877837]
[1766971721615,0.0606119,126.6,126.58,0.05275356]
[1766971721810,14.6106119,126.6,126.54,23.81877837]
[1766971722016,14.6106119,126.6,126.54,16.45]
[1766971722214,14.5,126.58,126.53,7.36877837]
[1766971722416,14.5,126.58,126.52,23.81877837]
[1766971723018,0.05626135,126.56,126.54,0.05807638]
[1766971723815,0.05626135,126.56,126.5,23.5698]
[1766971724021,14.49626135,126.56,126.51,16.45]
[1766971724923,14.49626135,126.56,126.52,0.05507729]
[1766971728427,0.05626135,126.56,126.52,18.71953938]
[1766971733628,16.53,126.67,126.52,40.05703938]
[1766971733827,16.53,126.69,126.64,2.02446209]
[1766971734331,16.53,126.69,126.63,15.6]
[1766971734731,0.05378927,126.67,126.65,0.05842039]
[1766971735334,16.58378927,126.67,126.61,15.6]
[1766971736229,16.58378927,126.67,126.63,0.05129816]
[1766971736527,16.58378927,126.67,126.63,0.00129816]
[1766971737624,18.60825136,126.67,126.59,15.6]
[1766971737832,18.55446209,126.67,126.59,15.6]
[1766971738230,18.55446209,126.65,126.56,17.62446209]
[1766971738732,18.55446209,126.65,126.59,0.04477368]
[1766971738733,0.05236562,126.62,126.59,0.04477368]
[1766971739125,16.58236562,126.62,126.56,15.6]
[1766971740637,23.69616562,126.62,126.56,15.6]
[1766971742231,16.53,126.61,126.54,15.6]
[1766971742430,0.0509336,126.59,126.54,15.6]
[1766971743629,16.5809336,126.59,126.52,2.02446209]
[1766971743834,16.5809336,126.59,126.52,17.62446209]
[1766971745334,23.6965336,126.59,126.52,17.62446209]
[1766971746537,16.53,126.58,126.52,15.6]
[1766971746731,0.05018613,126.56,126.52,15.6]
[1766971753841,0.00018613,126.56,126.54,15.6]
[1766971754043,7.1148,126.6,126.54,15.6]
[1766971754544,16.53,126.58,126.52,15.6]
[1766971754939,0.05488881,126.56,126.54,0.05018613]
[1766971755140,0.05488881,126.56,126.5,15.6]
[1766971755338,16.19488881,126.56,126.49,7.37462974]
[1766971755544,18.2193509,126.56,126.48,15.36]
[1766971755743,18.16446209,126.56,126.48,15.36]
[1766971756139,0.05465771,126.53,126.48,15.36]
[1766971756947,0.05465771,126.53,126.48,17.38446209]
[1766971758455,0.05465771,126.53,126.48,16.65694272]
[1766971762246,16.19465771,126.53,126.48,16.65694272]
[1766971763952,16.19465771,126.53,126.48,1.29694272]
[1766971766554,16.19465771,126.53,126.48,16.65694272]
[1766971767052,16.19465771,126.53,126.48,15.36]
[1766971769957,0.05465771,126.53,126.49,16.65694272]
[1766971771857,0.00465771,126.53,126.51,16.65694272]
[1766971772058,0.00465771,126.53,126.51,15.36]
[1766971772455,0.00465771,126.53,126.47,16.65694272]
[1766971772648,23.2581,126.54,126.47,16.65694272]
[1766971772854,23.2581,126.54,126.49,0.05]
[1766971773057,16.14,126.54,126.49,0.05]
[1766971773955,0.05227203,126.53,126.49,0.05]
[1766971774352,0.05227203,126.53,126.49,16.70694272]
[1766971775957,0.00227203,126.53,126.51,16.65694272]
[1766971776162,0.00227203,126.53,126.51,15.36]
[1766971776560,0.00227203,126.53,126.49,0.05]
[1766971776763,16.14227203,126.53,126.49,0.05]
[1766971778067,0.00227203,126.53,126.49,1.34694272]
[1766971781360,0.00227203,126.53,126.49,0.05]
[1766971782871,16.14227203,126.53,126.49,0.05]
[1766971786675,23.26117203,126.53,126.49,0.05]
[1766971787065,8.70577933,126.52,126.49,0.05]
[1766971788673,15.82497933,126.52,126.49,0.05]
[1766971796283,15.82497933,126.52,126.47,1.29694272]
[1766971796581,15.82497933,126.52,126.47,17.31694272]
[1766971796784,8.70577933,126.52,126.47,17.31694272]
[1766971797283,8.70577933,126.52,126.48,0.05547264]
[1766971805083,0.00227203,126.53,126.49,17.31694272]
[1766971805689,0.00227203,126.53,126.51,1.29694272]
[1766971805888,0.00227203,126.53,126.51,1.34683255]
[1766971806085,14.20227203,126.53,126.48,7.37462974]
[1766971806391,14.20227203,126.53,126.48,1.29694272]
[1766971806888,14.20227203,126.53,126.48,8.67157246]
[1766971807285,14.20227203,126.53,126.49,0.05295051]
[1766971807690,21.32097203,126.53,126.49,0.05295051]
[1766971815690,7.12097203,126.53,126.5,1.29694272]
[1766971816894,21.50097203,126.53,126.5,1.29694272]
[1766971817590,14.38227203,126.53,126.5,1.29694272]
[1766971819896,14.38227203,126.53,126.49,7.42758025]
[1766971823000,14.38227203,126.53,126.49,7.45702724]
[1766971824003,14.48,126.55,126.5,9.43041155]
[1766971824395,21.6068,126.57,126.52,2.02633482]
[1766971824593,14.49,126.56,126.52,2.02633482]
[1766971824992,0.05823571,126.55,126.53,0.0526964]
[1766971825200,14.51823571,126.55,126.5,0.00407673]
[1766971829714,14.51823571,126.55,126.47,33.09755657]
[1766971829901,0.05480108,126.52,126.48,2.02633482]
[1766971830499,0.05480108,126.52,126.48,18.17633482]
[1766971831009,0.05480108,126.52,126.48,16.15]
[1766971834814,7.36480108,126.52,126.46,18.17633482]
[1766971835905,7.33,126.51,126.46,16.15]
[1766971837813,7.33,126.51,126.46,18.17633482]
[1766971839216,7.17400108,126.52,126.46,18.17633482]
[1766971839417,0.05480108,126.52,126.46,18.17633482]
[1766971843520,7.56480108,126.52,126.46,16.15]
[1766971844719,14.68410108,126.52,126.46,16.15]
[1766971849924,14.68410108,126.52,126.46,18.17633482]
[1766971853027,14.68410108,126.52,126.46,16.15]
[1766971857323,7.56480108,126.52,126.46,16.15]
[1766971857531,0.05480108,126.52,126.46,16.15]
[1766971857729,0.05480108,126.52,126.46,18.17633482]
[1766971858227,0.05480108,126.52,126.47,17.54]
[1766971861428,7.94480108,126.52,126.45,17.54]
[1766971861628,0.05431176,126.5,126.45,17.54]
[1766971865631,0.05431176,126.5,126.45,19.56633482]
[1766971866736,0.05431176,126.5,126.45,17.54]
[1766971866932,8.02431176,126.5,126.43,17.54]
[1766971868025,7.1211,126.49,126.43,17.54]
[1766971868225,0.06004812,126.47,126.43,17.54]
[1766971880642,0.06004812,126.47,126.44,18.61794334]
[1766971885649,0.06004812,126.47,126.44,17.32]
[1766971894960,8.34,126.46,126.42,7.3974977]
[1766971895167,8.34,126.46,126.39,26.01544104]
[1766971895461,0.05037544,126.44,126.4,17.32]
[1766971906364,7.08831878,126.44,126.38,17.26]
[1766971906572,0.05844107,126.42,126.38,17.26]
[1766971908773,0.05844107,126.42,126.38,18.55794334]
[1766971909278,14.18074334,126.46,126.4,17.26]
[1766971909868,12.8828,126.46,126.4,17.26]
[1766971910270,0.05022444,126.44,126.42,0.05558393]
[1766971910876,0.05022444,126.44,126.4,17.26]
[1766971913476,0.00022444,126.44,126.4,17.26]
[1766971914479,0.00022444,126.44,126.42,16.82]
[1766971914677,5.9,126.49,126.42,16.82]
[1766971914873,5.9,126.49,126.41,1.3545746]
[1766971914874,7.1201,126.51,126.44,16.82]
[1766971915079,13.0301,126.51,126.44,16.82]
[1766971915678,0.05650985,126.49,126.46,0.05905908]
[1766971921576,6.01,126.53,126.46,18.17700242]
[1766971921786,1.93123507,126.54,126.48,18.11794334]
[1766971921987,6.01,126.58,126.51,16.82]
[1766971922688,0.05720384,126.56,126.53,0.05077484]
[1766971923884,0.05720384,126.56,126.53,16.87077484]
[1766971930594,94.94,126.69,126.55,18.11794334]
[1766971930785,175.0,126.71,126.55,18.11794334]
[1766971930786,7.41794334,126.64,126.55,18.11794334]
[1766971931192,14.54114334,126.63,126.57,16.82]
[1766971931497,1.29794334,126.62,126.57,16.82]
[1766971931899,0.05672273,126.61,126.58,0.05125906]
[1766971932791,1.35466607,126.61,126.58,0.05125906]
[1766971933903,0.05672273,126.61,126.58,0.05125906]
[1766971936702,1.35466607,126.61,126.58,0.05125906]
[1766971936901,6.19672273,126.61,126.55,17.6]
[1766971937102,1.29794334,126.6,126.55,17.6]
[1766971937797,0.05577452,126.59,126.56,0.05951693]
[1766971938800,1.35371786,126.59,126.56,0.05951693]
[1766971940502,0.05577452,126.59,126.56,0.05951693]
[1766971942506,0.05577452,126.59,126.56,17.65951693]
[1766971942902,13.2932,126.63,126.56,17.65951693]
[1766971943102,8.26521552,126.65,126.56,17.6]